bitfinex/quotes_BTCUSD_20230403
["timestamp","ask_amount","ask_price","bid_price","bid_amount"]
[1680538758273,4.97503564,28089.0,28088.0,0.59309132]
[1680538758483,4.87503564,28089.0,28088.0,0.59309132]
[1680538758705,4.66231237,28089.0,28088.0,0.59309132]
[1680538758921,4.66231237,28089.0,28088.0,0.59297333]
[1680538759168,4.76231237,28089.0,28088.0,0.59297333]
[1680538760966,4.94072674,28089.0,28088.0,0.59297333]
[1680538767750,5.19667702,28089.0,28088.0,0.59297333]
[1680538773776,5.5244351,28089.0,28088.0,0.59297333]
[1680538776003,5.5244351,28089.0,28088.0,0.59315333]
[1680538776450,5.5244351,28089.0,28088.0,0.59297333]
[1680538777396,1.81590493,28089.0,28088.0,0.73505014]
[1680538777638,0.59121499,28089.0,28088.0,0.94453314]
[1680538777890,0.21339608,28090.0,28088.0,0.94453314]
[1680538777891,0.25627879,28090.0,28088.0,0.94453314]
[1680538778135,0.12815711,28091.0,28090.0,0.45]
[1680538778136,0.0001186,28091.0,28090.0,0.45]
[1680538778374,0.00012,28092.0,28091.0,0.45]
[1680538778618,0.00018,28096.0,28091.0,2.61386695]
[1680538778868,0.21342137,28097.0,28095.0,0.1515]
[1680538778869,0.08538286,28097.0,28095.0,0.1515]
[1680538779119,0.08538286,28097.0,28096.0,0.133356]
[1680538779592,0.21360137,28098.0,28096.0,0.133356]
[1680538779826,0.00018,28098.0,28097.0,0.114587]
[1680538780059,0.00018,28101.0,28097.0,0.114587]
[1680538780263,0.00018,28101.0,28098.0,0.038262]
[1680538780527,0.00018,28101.0,28097.0,0.093195]
[1680538780781,0.00018,28101.0,28097.0,0.0754]
[1680538781004,0.00018,28101.0,28097.0,0.093195]
[1680538781245,0.00018,28101.0,28098.0,0.041686]
[1680538781485,0.00018,28101.0,28097.0,0.0754]
[1680538781769,0.001,28098.0,28097.0,0.0754]
[1680538782029,0.00118,28101.0,28097.0,0.134317]
[1680538782262,0.00018,28101.0,28098.0,0.0754]
[1680538782491,0.00118,28101.0,28098.0,0.0754]
[1680538782727,0.07483629,28101.0,28098.0,0.0754]
[1680538783383,0.00018,28101.0,28098.0,0.0754]
[1680538783851,0.2,28102.0,28098.0,0.07552]
[1680538784092,0.35,28101.0,28098.0,0.0754]
[1680538784342,0.35,28101.0,28098.0,0.0814]
[1680538784578,0.345,28101.0,28098.0,0.0814]
[1680538785263,0.00014252,28103.0,28100.0,0.076]
[1680538785500,0.5,28105.0,28102.0,0.0754]
[1680538785739,0.50014252,28105.0,28102.0,0.21729681]
[1680538785975,0.55371197,28105.0,28102.0,0.21729681]
[1680538786204,0.55371197,28105.0,28102.0,0.0754]
[1680538786452,0.55356945,28105.0,28102.0,0.0754]
[1680538787421,0.55356945,28105.0,28102.0,0.0934]
[1680538787974,0.55356945,28105.0,28103.0,0.0384194]
[1680538788521,0.1039265,28104.0,28103.0,0.0384194]
[1680538788785,0.4039265,28104.0,28102.0,0.018]
[1680538789051,0.45,28103.0,28102.0,0.018]
[1680538789644,0.8539265,28104.0,28102.0,0.018]
[1680538789917,0.1335712,28103.0,28102.0,0.018]
[1680538790167,0.1335712,28103.0,28099.0,0.04953862]
[1680538790168,0.1460252,28103.0,28099.0,0.04953862]
[1680538790426,0.45,28102.0,28099.0,0.04953862]
[1680538790708,0.662454,28102.0,28099.0,0.04953862]
[1680538791216,0.15620182,28101.0,28099.0,0.04953862]
[1680538791485,0.13685982,28101.0,28099.0,0.04953862]
[1680538791732,0.13685982,28101.0,28099.0,0.028]
[1680538793013,0.13685982,28101.0,28096.0,0.00018]
[1680538793279,0.27864929,28101.0,28099.0,0.018]
[1680538793545,0.13685982,28101.0,28099.0,0.018]
[1680538793789,0.13685982,28101.0,28095.0,0.05001346]
[1680538793790,0.07434675,28100.0,28095.0,0.05001346]
[1680538794050,0.21613622,28100.0,28095.0,0.05001346]
[1680538794544,0.21613622,28100.0,28099.0,0.018]
[1680538794804,0.07434675,28100.0,28096.0,0.03710549]
[1680538795766,0.07434675,28100.0,28095.0,0.07801346]
[1680538796032,0.02112066,28099.0,28095.0,0.05001346]
[1680538796278,0.02112066,28099.0,28096.0,0.068389]
[1680538796551,0.02112066,28099.0,28095.0,0.05001346]
[1680538796775,0.02112066,28099.0,28096.0,0.038651]
[1680538797354,0.2,28102.0,28098.0,0.0845]
[1680538797616,0.3,28102.0,28100.0,0.0845]
[1680538797899,0.00014252,28102.0,28101.0,0.04122]
[1680538798176,0.02001425,28102.0,28101.0,0.04122]
[1680538798446,0.02001425,28102.0,28100.0,0.0845]
[1680538799000,0.02001425,28102.0,28101.0,0.039186]
[1680538799245,0.02001425,28102.0,28101.0,0.044186]
[1680538799515,0.2,28103.0,28100.0,0.0845]
[1680538799804,0.2,28103.0,28100.0,0.012]
[1680538800315,0.2,28103.0,28100.0,0.0965]
[1680538800317,0.2,28103.0,28100.0,0.0845]
[1680538800590,0.00014252,28105.0,28101.0,0.005]
[1680538800868,0.22310001,28106.0,28101.0,0.005]
[1680538801139,0.0244412,28105.0,28101.0,0.14689681]
[1680538801658,0.0244412,28105.0,28101.0,0.005]
[1680538801927,0.22310001,28106.0,28102.0,0.0397973]
[1680538803840,0.22310001,28106.0,28105.0,0.0845]
[1680538803841,0.02310001,28106.0,28105.0,0.0845]
[1680538804122,0.02310001,28106.0,28105.0,0.38913381]
[1680538804387,0.02310001,28106.0,28105.0,0.176076]
[1680538804647,0.02310001,28106.0,28105.0,0.140496]
[1680538805105,0.02310001,28106.0,28105.0,0.08112775]
[1680538805106,0.01880783,28106.0,28105.0,0.08112775]
[1680538805586,0.01880783,28106.0,28105.0,0.10912775]
[1680538805588,0.01880783,28106.0,28105.0,0.08112775]
[1680538805845,0.01880783,28106.0,28105.0,0.04292175]
[1680538806110,0.01880783,28106.0,28105.0,0.10911475]
[1680538806371,0.01880783,28106.0,28105.0,0.08111475]
[1680538806673,0.01880783,28106.0,28105.0,0.10611475]
[1680538806885,0.01880783,28106.0,28105.0,0.08111475]
[1680538807142,0.01880783,28106.0,28105.0,0.10911475]
[1680538807671,0.01880783,28106.0,28105.0,0.07092175]
[1680538808200,0.01852959,28106.0,28105.0,0.04292175]
[1680538808467,0.01852959,28106.0,28105.0,0.07092175]
[1680538808734,0.01852959,28106.0,28105.0,0.04292175]
[1680538809005,0.01852959,28106.0,28105.0,0.07092175]
[1680538809486,0.01852959,28106.0,28105.0,0.04292175]
[1680538809489,0.01852959,28106.0,28105.0,0.07092175]
[1680538809744,0.01852959,28106.0,28105.0,0.04292175]
[1680538810026,0.01852959,28106.0,28105.0,0.07092175]
[1680538810538,0.01852959,28106.0,28105.0,0.11135275]
[1680538811655,0.01852959,28106.0,28105.0,0.07092175]
[1680538811936,0.01852959,28106.0,28105.0,0.11062575]
[1680538812485,0.01852959,28106.0,28105.0,0.10997375]
[1680538814842,0.01852959,28106.0,28105.0,0.10983075]
[1680538816188,0.01852959,28106.0,28105.0,0.07092175]
[1680538816466,0.03704859,28106.0,28105.0,0.07092175]
[1680538816754,0.01852959,28106.0,28105.0,0.07092175]
[1680538817863,0.01852959,28106.0,28105.0,0.028]
[1680538818988,0.01852959,28106.0,28105.0,0.0705738]
[1680538819274,0.01852959,28106.0,28105.0,0.1961988]
[1680538819816,0.01852959,28106.0,28105.0,0.2139888]
[1680538820664,0.01852959,28106.0,28105.0,0.2089888]
[1680538821200,0.01852959,28106.0,28105.0,0.1911988]
[1680538821937,0.01852959,28106.0,28105.0,0.2089888]
[1680538825401,0.01852959,28106.0,28105.0,0.1911988]
[1680538826508,0.01852959,28106.0,28105.0,0.1911988]
[1680538827368,0.01852959,28106.0,28105.0,0.5909888]
[1680538827644,0.01852959,28106.0,28105.0,0.8654565]
[1680538829246,0.01852959,28106.0,28105.0,0.8424565]
[1680538829497,0.01852959,28106.0,28105.0,0.2139888]
[1680538830193,0.01852959,28106.0,28105.0,0.1116988]
[1680538830426,0.01852959,28106.0,28105.0,0.0705738]
[1680538834911,0.01852959,28106.0,28105.0,0.0425738]
[1680538835124,0.01952959,28106.0,28105.0,0.0605738]
[1680538835344,0.01852959,28106.0,28105.0,0.0425738]
[1680538835573,0.01852959,28106.0,28105.0,0.0535738]
[1680538835574,0.01952959,28106.0,28105.0,0.0535738]
[1680538835794,0.01952959,28106.0,28105.0,0.011]
[1680538836669,0.01952959,28106.0,28105.0,0.0617388]
[1680538842412,0.01852959,28106.0,28105.0,0.0507388]
[1680538842659,0.10491245,28106.0,28105.0,0.0617388]
[1680538842874,0.01952959,28106.0,28105.0,0.051674]
[1680538843325,0.01852959,28106.0,28105.0,0.040674]
[1680538843560,0.01852959,28106.0,28104.0,0.040646]
[1680538843778,0.01852959,28106.0,28104.0,0.058436]
[1680538843971,0.01852959,28106.0,28105.0,0.040163]
[1680538844412,0.01852959,28106.0,28105.0,0.051163]
[1680538844413,0.01952959,28106.0,28105.0,0.051163]
[1680538844638,0.01852959,28106.0,28105.0,0.040163]
[1680538844856,0.01952959,28106.0,28105.0,0.040163]
[1680538845085,0.01852959,28106.0,28105.0,0.040163]
[1680538845306,0.01952959,28106.0,28105.0,0.051163]
[1680538848731,0.01952959,28106.0,28105.0,0.10105626]
[1680538851729,0.01952959,28106.0,28105.0,0.06089326]
[1680538852241,0.93349523,28106.0,28105.0,0.06089326]
[1680538852531,0.93349523,28106.0,28105.0,4.99e-06]
[1680538852532,3.17684806,28106.0,28105.0,4.99e-06]
[1680538852841,3.17684806,28106.0,28101.0,0.00018]
[1680538852842,0.212454,28102.0,28099.0,0.04949438]
[1680538853113,0.22588947,28101.0,28097.0,0.00018]
[1680538853383,0.2,28098.0,28096.0,0.0491808]
[1680538853655,0.34178947,28098.0,28096.0,0.0491808]
[1680538853946,0.34178947,28098.0,28095.0,0.00018]
[1680538853947,0.43874547,28098.0,28095.0,0.00018]
[1680538854191,0.43874547,28098.0,28097.0,0.01]
[1680538854460,0.296956,28098.0,28094.0,0.00018]
[1680538854726,0.45,28097.0,28096.0,0.017]
[1680538854983,0.45,28097.0,28094.0,0.00018]
[1680538856585,0.2845,28095.0,28093.0,0.00018]
[1680538856854,0.3,28094.0,28092.0,0.04996487]
[1680538857125,0.3,28094.0,28091.0,0.00018]
[1680538857126,0.32845,28094.0,28091.0,0.00018]
[1680538857694,0.32845,28094.0,28090.0,0.00018]
[1680538857695,0.2,28091.0,28090.0,0.00018]
[1680538858034,0.296459,28091.0,28090.0,0.00018]
[1680538858194,0.284,28091.0,28090.0,0.00018]
[1680538858432,0.4082177,28091.0,28090.0,0.00018]
[1680538859146,0.4082177,28091.0,28089.0,0.00018]
[1680538859384,0.0845,28090.0,28089.0,0.00018]
[1680538860560,0.0935,28090.0,28089.0,0.00118]
[1680538860778,0.16124289,28090.0,28089.0,0.04524629]
[1680538861018,0.17624289,28090.0,28089.0,0.04624629]
[1680538861242,0.16124289,28090.0,28089.0,0.04524629]
[1680538861968,0.07674289,28090.0,28089.0,0.04524629]
[1680538862475,0.08574289,28090.0,28089.0,0.04624629]
[1680538862742,0.07674289,28090.0,28089.0,0.04524629]
[1680538863020,0.09174289,28090.0,28089.0,0.04624629]
[1680538863295,0.09174289,28090.0,28089.0,0.04524629]
[1680538863296,0.07674289,28090.0,28089.0,0.04524629]
[1680538863537,0.08574289,28090.0,28089.0,0.04624629]
[1680538863775,0.07674289,28090.0,28089.0,0.04524629]
[1680538864007,0.09174289,28090.0,28089.0,0.04624629]
[1680538864277,0.31549136,28090.0,28089.0,0.04524629]
[1680538864501,0.94120189,28090.0,28089.0,0.04624629]
[1680538864963,0.94120189,28090.0,28089.0,0.00118]
[1680538865191,0.94120189,28090.0,28089.0,0.001]
[1680538865748,0.94120189,28090.0,28088.0,0.61415333]
[1680538865749,0.93220189,28090.0,28088.0,0.61415333]
[1680538865983,1.48801865,28090.0,28089.0,0.001]
[1680538866217,1.67485476,28090.0,28089.0,0.001]
[1680538866450,1.67499728,28090.0,28089.0,0.001]
[1680538866696,1.65999728,28090.0,28088.0,0.61397333]
[1680538866920,1.22192821,28089.0,28088.0,0.61497333]
[1680538867173,1.73731821,28089.0,28088.0,0.61415333]
[1680538867409,1.83266684,28089.0,28088.0,0.61397333]
[1680538867648,2.28266684,28089.0,28088.0,0.61397333]
[1680538867875,2.26483073,28089.0,28088.0,0.61397333]
[1680538868396,1.1,28087.0,28086.0,0.0216]
[1680538868653,1.1,28087.0,28082.0,0.00319931]
[1680538868654,1.9,28083.0,28082.0,0.00319931]
[1680538868892,1.337392,28080.0,28079.0,0.01739389]
[1680538869142,1.86368147,28080.0,28079.0,0.01739389]
[1680538869369,2.30854937,28080.0,28079.0,0.01739389]
[1680538869603,2.1667599,28080.0,28079.0,0.01739389]
[1680538870092,2.2512599,28080.0,28079.0,0.01739389]
[1680538870327,2.2782599,28080.0,28079.0,0.01739389]
[1680538871255,2.2512599,28080.0,28079.0,0.01739389]
[1680538871447,2.2782599,28080.0,28079.0,0.01739389]
[1680538871726,2.2512599,28080.0,28079.0,0.01739389]
[1680538871924,2.2782599,28080.0,28079.0,0.01739389]
[1680538872455,2.74609601,28080.0,28079.0,0.01739389]
[1680538872924,2.7282599,28080.0,28079.0,0.01739389]
[1680538873157,2.7820725,28080.0,28079.0,0.01739389]
[1680538874329,2.8013395,28080.0,28079.0,0.01739389]
[1680538875015,2.8011395,28080.0,28079.0,0.01739389]
[1680538877568,2.3511395,28080.0,28079.0,0.01739389]
[1680538878955,2.3241395,28080.0,28079.0,0.01739389]
[1680538880115,2.3511395,28080.0,28079.0,0.01739389]
[1680538880328,2.3241395,28080.0,28079.0,0.01739389]
[1680538880551,2.3511395,28080.0,28079.0,0.01739389]
[1680538880806,2.3241395,28080.0,28079.0,0.01739389]
[1680538881004,1.9125436,28080.0,28079.0,0.01739389]
[1680538881320,1.91268612,28080.0,28079.0,0.01739389]
[1680538881557,0.327,28080.0,28079.0,0.1592907]
[1680538881792,0.22714252,28080.0,28079.0,0.01739389]
[1680538881982,0.227,28080.0,28079.0,0.01739389]
[1680538882933,0.2,28080.0,28079.0,0.07044214]
[1680538883170,0.221,28080.0,28079.0,0.07044214]
[1680538883392,0.25153325,28080.0,28079.0,0.07044214]
[1680538883625,0.25253325,28080.0,28079.0,0.07344214]
[1680538884293,0.25153325,28080.0,28079.0,0.07044214]
[1680538884526,0.25253325,28080.0,28079.0,0.07344214]
[1680538885687,0.25153325,28080.0,28079.0,0.07044214]
[1680538885900,0.25253325,28080.0,28079.0,0.07044214]
[1680538888844,0.25953325,28080.0,28079.0,0.07044214]
[1680538889639,0.56803325,28080.0,28079.0,0.07044214]
[1680538892991,0.56803325,28080.0,28078.0,0.021]
[1680538892992,4.974e-05,28079.0,28078.0,0.01224058]
[1680538893234,1.00683687,28079.0,28077.0,0.01379068]
[1680538893462,0.139579,28078.0,28077.0,0.00301345]
[1680538893724,0.28986847,28078.0,28077.0,0.00301345]
[1680538893921,2.24255084,28078.0,28077.0,0.00301345]
[1680538894164,2.87063084,28078.0,28077.0,0.00301345]
[1680538895043,2.89777336,28078.0,28077.0,0.00301345]
[1680538896151,2.21587656,28078.0,28077.0,0.00301345]
[1680538896422,1.05082724,28078.0,28077.0,0.00301345]
[1680538896667,0.082579,28078.0,28077.0,0.00301345]
[1680538897110,0.13692938,28078.0,28077.0,0.00301345]
[1680538897331,0.10992938,28078.0,28077.0,0.00301345]
[1680538897559,0.39639267,28078.0,28077.0,0.00301345]
[1680538897799,0.36939267,28078.0,28077.0,0.00301345]
[1680538898016,0.38439267,28078.0,28077.0,0.00301345]
[1680538898242,0.68439267,28078.0,28077.0,0.00301345]
[1680538898467,0.66939267,28078.0,28077.0,0.00301345]
[1680538898690,0.69039267,28078.0,28077.0,0.00301345]
[1680538898933,0.66939267,28078.0,28077.0,0.00301345]
[1680538899185,0.69039267,28078.0,28077.0,0.00301345]
[1680538899398,0.66939267,28078.0,28077.0,0.00301345]
[1680538900076,0.318184,28078.0,28077.0,0.14491026]
[1680538900326,0.318184,28078.0,28077.0,0.00301345]
[1680538900327,0.027,28078.0,28077.0,0.00301345]
[1680538900795,0.2,28080.0,28077.0,0.00301345]
[1680538901015,0.027,28078.0,28077.0,0.00301345]
[1680538901234,0.212464,28080.0,28077.0,0.00301345]
[1680538901461,0.001,28078.0,28077.0,0.00601345]
[1680538903390,0.3212464,28079.0,28077.0,0.00301345]
[1680538904197,0.001,28078.0,28077.0,0.00601345]
[1680538904427,0.312464,28079.0,28077.0,0.00301345]
[1680538904654,0.313464,28079.0,28077.0,0.00601345]
[1680538905548,0.01947,28078.0,28077.0,0.00601345]
[1680538905801,0.0877213,28078.0,28077.0,0.00601345]
[1680538906253,0.0877213,28078.0,28077.0,0.00301345]
[1680538906724,0.0887213,28078.0,28077.0,0.00601345]
[1680538907416,0.0762563,28078.0,28077.0,0.00601345]
[1680538908986,0.0887213,28078.0,28077.0,0.00601345]
[1680538910144,0.4887213,28078.0,28077.0,0.00601345]
[1680538910606,0.8385823,28078.0,28077.0,0.00601345]
[1680538912023,0.8385823,28078.0,28077.0,0.00301345]
[1680538912024,0.8375823,28078.0,28077.0,0.00301345]
[1680538912286,0.8525823,28078.0,28077.0,0.00301345]
[1680538912558,0.8375823,28078.0,28077.0,0.00301345]
[1680538912837,0.8645823,28078.0,28077.0,0.00301345]
[1680538914267,0.97621567,28078.0,28077.0,0.00301345]
[1680538914713,0.89091841,28078.0,28077.0,0.00301345]
[1680538914930,0.97621567,28078.0,28077.0,0.00301345]
[1680538915391,0.94921567,28078.0,28077.0,0.00301345]
[1680538915635,0.89091841,28078.0,28077.0,0.00301345]
[1680538916109,0.97621567,28078.0,28077.0,0.00301345]
[1680538916343,0.89091841,28078.0,28077.0,0.00301345]
[1680538917241,0.97621567,28078.0,28077.0,0.00301345]
[1680538917469,0.89091841,28078.0,28077.0,0.00301345]
[1680538917929,0.49091841,28078.0,28077.0,0.00294752]
[1680538918152,0.54379212,28078.0,28077.0,0.00294752]
[1680538918872,0.51679212,28078.0,28077.0,0.00294752]
[1680538919134,0.54379212,28078.0,28077.0,0.00294752]
[1680538919596,0.62908938,28078.0,28077.0,0.00294752]
[1680538919829,0.51679212,28078.0,28077.0,0.00294752]
[1680538920049,0.54379212,28078.0,28077.0,0.00294752]
[1680538920503,0.62908938,28078.0,28077.0,0.00294752]
[1680538920642,0.60208938,28078.0,28077.0,0.00294752]
[1680538921681,0.54379212,28078.0,28077.0,0.00294752]
[1680538922110,0.57079212,28078.0,28077.0,0.00294752]
[1680538922552,0.40264482,28078.0,28077.0,0.00294752]
[1680538922994,0.34977111,28078.0,28077.0,0.00294752]
[1680538923239,0.331935,28078.0,28077.0,0.00294752]
[1680538923452,0.058935,28078.0,28077.0,0.00294752]
[1680538923679,0.331935,28078.0,28077.0,0.00294752]
[1680538923903,0.73895997,28078.0,28077.0,0.00294752]
[1680538924356,0.43895997,28078.0,28077.0,0.00294752]
[1680538924600,0.46595997,28078.0,28077.0,0.00294752]
[1680538924825,0.43895997,28078.0,28077.0,0.00294752]
[1680538925267,0.45995997,28078.0,28077.0,0.00294752]
[1680538925478,0.43895997,28078.0,28077.0,0.00294752]
[1680538925698,0.46595997,28078.0,28077.0,0.00294752]
[1680538926130,0.43895997,28078.0,28077.0,0.00294752]
[1680538926334,0.45995997,28078.0,28077.0,0.00294752]
[1680538926548,0.43895997,28078.0,28077.0,0.00294752]
[1680538926759,0.331935,28078.0,28077.0,0.00294752]
[1680538927203,0.031935,28078.0,28077.0,0.00294752]
[1680538927650,0.058935,28078.0,28077.0,0.00294752]
[1680538927858,0.28543978,28080.0,28077.0,0.00294752]
[1680538928090,0.20014252,28080.0,28077.0,0.14484433]
[1680538928316,0.2,28080.0,28077.0,0.00294752]
[1680538928545,0.015,28078.0,28077.0,0.00294752]
[1680538928773,0.2,28080.0,28077.0,0.04137552]
[1680538929019,0.00014252,28082.0,28079.0,0.0847]
[1680538929260,0.09400738,28084.0,28080.0,0.039872]
[1680538929261,0.29400738,28084.0,28080.0,0.039872]
[1680538929498,0.2941499,28084.0,28080.0,0.14189681]
[1680538929745,0.20885264,28084.0,28080.0,0.14189681]
[1680538929975,0.20885264,28084.0,28079.0,0.08488]
[1680538930209,0.22117212,28084.0,28079.0,0.0847]
[1680538930901,0.13527418,28085.0,28080.0,0.14189681]
[1680538931136,0.0498344,28085.0,28084.0,0.1691]
[1680538931381,0.0498344,28085.0,28084.0,0.207633]
[1680538931614,0.20014252,28091.0,28084.0,0.225616]
[1680538931859,0.2,28091.0,28088.0,0.0847]
[1680538932087,0.2,28091.0,28088.0,0.22659681]
[1680538932323,0.2,28091.0,28088.0,0.0847]
[1680538932778,0.2,28091.0,28089.0,0.039288]
[1680538933695,0.201,28091.0,28089.0,0.039288]
[1680538933931,0.2,28091.0,28089.0,0.039288]
[1680538934152,0.201,28091.0,28089.0,0.017]
[1680538936651,0.213459,28091.0,28089.0,0.017]
[1680538938909,0.26941085,28091.0,28089.0,0.017]
[1680538940544,0.213459,28091.0,28089.0,0.017]
[1680538940790,0.001,28091.0,28090.0,0.0847]
[1680538941038,0.001,28091.0,28090.0,0.125623]
[1680538941738,0.001,28091.0,28090.0,0.125803]
[1680538941971,0.001,28091.0,28090.0,0.125623]
[1680538942230,0.04938513,28094.0,28090.0,0.125623]
[1680538942457,0.001,28091.0,28090.0,0.01]
[1680538942724,0.001,28091.0,28090.0,0.131663]
[1680538943179,0.04938513,28094.0,28090.0,0.121663]
[1680538943401,0.04938513,28094.0,28092.0,0.0839]
[1680538943636,0.04938513,28094.0,28093.0,0.037191]
[1680538943871,0.001,28094.0,28093.0,0.037191]
[1680538944099,0.22310001,28095.0,28093.0,0.037191]
[1680538944323,0.22310001,28095.0,28092.0,0.0839]
[1680538945488,0.001,28094.0,28092.0,0.0839]
[1680538945710,0.22310001,28095.0,28093.0,0.039761]
[1680538945950,0.27962516,28095.0,28092.0,0.1069]
[1680538946194,0.29108216,28095.0,28092.0,0.0839]
[1680538946437,0.29108216,28095.0,28092.0,0.1069]
[1680538946438,0.001,28094.0,28092.0,0.1069]
[1680538946670,0.22310001,28095.0,28092.0,0.0839]
[1680538946915,0.23655701,28095.0,28093.0,0.017]
[1680538947148,0.22410001,28095.0,28093.0,0.017]
[1680538947848,0.23555701,28095.0,28092.0,0.0839]
[1680538948091,0.35920388,28095.0,28092.0,0.0839]
[1680538948319,0.001,28094.0,28092.0,0.1069]
[1680538948551,0.013458,28094.0,28092.0,0.1069]
[1680538948797,0.012458,28094.0,28092.0,0.0839]
[1680538949066,0.36020488,28095.0,28093.0,0.017]
[1680538949533,0.36020488,28095.0,28088.0,0.00018]
[1680538949534,0.019553,28094.0,28088.0,0.00018]
[1680538949756,0.14178947,28093.0,28092.0,0.023]
[1680538950038,0.08646729,28094.0,28093.0,6.186e-05]
[1680538950039,0.08546729,28094.0,28093.0,6.186e-05]
[1680538950262,0.35920488,28095.0,28093.0,6.186e-05]
[1680538950496,0.318414,28094.0,28093.0,6.186e-05]
[1680538950727,0.35920488,28095.0,28093.0,6.186e-05]
[1680538950956,0.36020488,28095.0,28093.0,0.01706186]
[1680538951203,0.34674688,28095.0,28087.0,0.08488]
[1680538951418,0.14178947,28094.0,28088.0,0.056862]
[1680538951648,0.14278947,28094.0,28093.0,0.017]
[1680538951876,0.04956267,28094.0,28088.0,0.017981]
[1680538952104,0.14178947,28094.0,28089.0,0.039192]
[1680538952329,0.3968018,28095.0,28089.0,0.039192]
[1680538952569,0.53759127,28095.0,28089.0,0.14189681]
[1680538952790,0.001,28094.0,28093.0,0.01]
[1680538953680,0.22310001,28095.0,28089.0,0.14207681]
[1680538953928,0.001,28094.0,28089.0,0.022]
[1680538954162,0.14178947,28094.0,28088.0,0.017801]
[1680538954377,0.14278947,28094.0,28093.0,0.01]
[1680538954611,0.41944548,28095.0,28088.0,0.017801]
[1680538954858,0.001,28094.0,28089.0,0.16389681]
[1680538955098,0.07273471,28095.0,28093.0,0.0839]
[1680538955341,0.07273471,28095.0,28094.0,0.122666]
[1680538955604,0.02310001,28095.0,28094.0,0.122666]
[1680538957210,0.02410001,28095.0,28094.0,0.144666]
[1680538959854,0.02410001,28095.0,28094.0,0.122666]
[1680538959855,0.02310001,28095.0,28094.0,0.122666]
[1680538960071,0.02410001,28095.0,28094.0,0.144666]
[1680538961899,0.02410001,28095.0,28094.0,0.060666]
[1680538965315,0.04883426,28095.0,28094.0,0.022]
[1680538965541,0.04883426,28095.0,28094.0,0.06246]
[1680538966037,0.04783426,28095.0,28094.0,0.04046]
[1680538966275,0.04983426,28095.0,28094.0,0.02]
[1680538966506,0.04783426,28095.0,28090.0,0.101979]
[1680538966731,0.19162373,28095.0,28094.0,0.02]
[1680538966967,0.04983426,28095.0,28094.0,0.057496]
[1680538968285,0.04983426,28095.0,28094.0,0.057765]
[1680538968993,0.02510001,28095.0,28094.0,0.02]
[1680538971095,0.02310001,28095.0,28090.0,0.08418]
[1680538971337,0.16588948,28095.0,28094.0,0.01]
[1680538971552,0.02410001,28095.0,28094.0,0.01]
[1680538971772,0.09507986,28095.0,28094.0,0.01]
[1680538971993,0.12630086,28095.0,28094.0,0.01]
[1680538972229,0.51861056,28095.0,28094.0,0.01]
[1680538974586,0.52711056,28095.0,28094.0,0.01]
[1680538974857,0.04286401,28095.0,28094.0,0.01]
[1680538975141,0.02410001,28095.0,28094.0,0.01]
[1680538975814,0.02310001,28095.0,28092.0,0.0839]
[1680538976060,0.03910001,28095.0,28094.0,0.001]
[1680538977024,0.02310001,28095.0,28093.0,0.04091]
[1680538977272,0.02410001,28095.0,28094.0,0.011]
[1680538977515,0.02310001,28095.0,28094.0,0.055777]
[1680538977749,0.02510001,28095.0,28094.0,0.055777]
[1680538977977,0.05846399,28095.0,28094.0,0.019]
[1680538978216,0.02510001,28095.0,28094.0,0.019]
[1680538978705,0.05675201,28095.0,28094.0,0.019]
[1680538978943,0.05675201,28095.0,28094.0,0.01892565]
[1680538978944,0.59771374,28095.0,28094.0,0.01892565]
[1680538979618,0.76830826,28095.0,28094.0,0.01892565]
[1680538979858,0.94973185,28095.0,28094.0,0.01892565]
[1680538980271,0.94973185,28095.0,28087.0,0.00018]
[1680538980272,0.2,28093.0,28087.0,0.00018]
[1680538980501,0.14178947,28092.0,28087.0,0.00018]
[1680538980732,0.68458947,28092.0,28085.0,0.017982]
[1680538980983,0.68458947,28092.0,28085.0,0.00018]
[1680538981227,0.34698256,28091.0,28085.0,0.00018]
[1680538981525,0.14178947,28090.0,28087.0,0.017]
[1680538981766,0.34698256,28091.0,28086.0,0.00018]
[1680538982032,0.34698256,28091.0,28085.0,0.01718]
[1680538982265,0.48877203,28091.0,28085.0,0.01718]
[1680538982511,0.11312671,28090.0,28085.0,0.01718]
[1680538982949,0.11312671,28090.0,28085.0,0.00018]
[1680538983123,0.11312671,28090.0,28085.0,0.01718]
[1680538983337,0.11312671,28090.0,28085.0,0.00018]
[1680538983543,0.11512671,28090.0,28085.0,0.01718]
[1680538983752,0.04121093,28089.0,28085.0,0.034983]
[1680538984370,0.04121093,28089.0,28086.0,0.038739]
[1680538984559,0.04121093,28089.0,28085.0,0.034983]
[1680538984930,0.04121093,28089.0,28085.0,0.017983]
[1680538986131,0.04321093,28089.0,28085.0,0.01718]
[1680538986350,0.04321093,28089.0,28085.0,0.017]
[1680538986582,0.06063376,28088.0,28085.0,0.017]
[1680538986790,0.04321093,28089.0,28085.0,0.017]
[1680538989596,0.04321093,28089.0,28080.0,0.12773706]
[1680538989597,0.7749,28081.0,28080.0,0.12773706]
[1680538989839,0.2,28078.0,28077.0,0.00294752]
[1680538990092,0.53359547,28078.0,28076.0,0.021]
[1680538990341,0.61089447,28077.0,28076.0,0.021]
[1680538990576,0.68623041,28077.0,28076.0,0.021]
[1680538990811,0.99444094,28077.0,28076.0,0.021]
[1680538991275,1.29444094,28077.0,28076.0,0.021]
[1680538992453,1.31844094,28077.0,28076.0,0.021]
[1680538992678,1.29444094,28077.0,28076.0,0.021]
[1680538992901,1.32144094,28077.0,28076.0,0.021]
[1680538993122,1.00026944,28077.0,28076.0,0.021]
[1680538997832,0.97326944,28077.0,28076.0,0.021]
[1680538998105,1.05334428,28077.0,28076.0,0.021]
[1680538998547,1.02634428,28077.0,28076.0,0.021]
[1680538998779,1.05334428,28077.0,28076.0,0.021]
[1680538999820,1.02634428,28077.0,28076.0,0.021]
[1680539000679,1.05334428,28077.0,28076.0,0.021]
[1680539000896,1.02634428,28077.0,28076.0,0.021]
[1680539001101,1.05334428,28077.0,28076.0,0.021]
[1680539001320,1.02634428,28077.0,28076.0,0.021]
[1680539001997,1.05334428,28077.0,28076.0,0.021]
[1680539002641,1.07118039,28077.0,28076.0,0.021]
[1680539003450,0.58568039,28077.0,28076.0,0.021]
[1680539003852,0.61268039,28077.0,28076.0,0.021]
[1680539004078,0.58568039,28077.0,28076.0,0.021]
[1680539004316,0.61268039,28077.0,28076.0,0.021]